[Event "Niedersachsen-ch B 2024"]
[Site "Verden Aller"]
[Date "2024.01.05"]
[Round "4.19"]
[White "Warns, Harald"]
[Black "Zweck, Gerhard"]
[Result "1-0"]
[ECO "E00"]
[WhiteElo "1683"]
[BlackElo "1414"]
[Annotator "NA"]
[PlyCount "85"]
[EventDate "2024.01.01"]
[EventType "swiss"]
[EventCountry "GER"]
[SourceTitle "playchess.com"]
[Source "ChessBase"]
[SourceQuality "1"]
[TimeControl "40/5400+30:1800+30"]

1. d4 {[%emt 0:00:09]} Nf6 {[%emt 0:00:13]} 2. c4 {[%emt 0:00:07]} d5 {[%emt 0:00:57]} 3. e3 {[%emt 0:00:02]} e6 {[%emt 0:01:35]} 4. a3 {[%emt 0:00:03]} c5 {[%emt 0:03:08]} 5. dxc5 {[%emt 0:00:24]} Bxc5 {[%emt 0:00:03]} 6. b4 {[%emt 0:00:09]} Be7 {[%emt 0:01:15]} 7. Bb2 {[%emt 0:00:43]} O-O {[%emt 0:02:39]} 8. Nf3 {[%emt 0:00:04]} b6 {[%emt 0:04:11]} 9. Nc3 {[%emt 0:00:32]} Bb7 {[%emt 0:01:45]} 10. cxd5 {[%emt 0:02:30]} exd5 {[%emt 0:02:38]} 11. Be2 {[%emt 0:01:20]} Nc6 {[%emt 0:06:02]} 12. O-O {[%emt 0:00:12]} a5 {[%emt 0:03:02]} 13. b5 {[%emt 0:00:27]} Nb8 {[%emt 0:01:21]} 14. Rc1 {[%emt 0:04:44]} Nbd7 {[%emt 0:00:44]} 15. Na4 {[%emt 0:00:26]} Rc8 {[%emt 0:03:15]} 16. Qb3 {[%emt 0:04:51]} Nc5 {[%emt 0:07:07]} 17. Nxc5 {[%emt 0:00:02]} bxc5 {[%emt 0:01:35]} 18. a4 {[%emt 0:00:14]} c4 {[%emt 0:02:08]} 19. Qc2 {[%emt 0:02:43]} Ne4 {[%emt 0:06:35]} 20. Bd4 {[%emt 0:01:32]} Ba3 {[%emt 0:11:35]} 21. Ra1 {[%emt 0:01:57]} Bb4 {[%emt 0:01:30]} 22. Rfd1 {[%emt 0:05:22]} c3 {[%emt 0:02:03]} 23. Bd3 {[%emt 0:02:15]} f5 {[%emt 0:09:56]} 24. g3 {[%emt 0:11:18]} Be7 {[%emt 0:09:07]} 25. Rdc1 {[%emt 0:12:36]} Qe8 {[%emt 0:01:32]} 26. Be2 {[%emt 0:03:42]} Bf6 {[%emt 0:04:35]} 27. Bxf6 {[%emt 0:01:08]} Rxf6 {[%emt 0:00:20]} 28. Nd4 {[%emt 0:00:22]} Qd7 {[%emt 0:03:46]} 29. Bd3 {[%emt 0:09:46]} Qf7 {[%emt 0:03:15]} 30. Ra2 {[%emt 0:03:31]} h5 {[%emt 0:01:39]} 31. Qe2 {[%emt 0:09:02]} Qg6 {[%emt 0:00:26]} 32. Nf3 {[%emt 0:01:57]} Qh7 {[%emt 0:02:19]} 33. Rac2 {[%emt 0:01:12]} Qg6 {[%emt 0:02:10]} 34. Nh4 {[%emt 0:05:03]} Qf7 {[%emt 0:00:04]} 35. Bxe4 {[%emt 0:04:30]} fxe4 {[%emt 0:00:08]} 36. Rxc3 {[%emt 0:01:16]} Rxc3 {[%emt 0:00:21]} 37. Rxc3 {[%emt 0:00:01]} Kh7 {[%emt 0:00:42]} 38. Qc2 {[%emt 0:01:24]} Re6 {[%emt 0:02:34]} 39. f4 {[%emt 0:02:23]} g5 {[%emt 0:00:35]} 40. Nf3 {[%emt 0:00:32]} Qg6 {[%emt 0:00:23]} 41. Nxg5+ {[%emt 0:30:39]} Kh6 {[%emt 0:30:22]} 42. Rc7 {[%emt 0:01:31]} d4 {[%emt 0:00:48]} 43. Nf7+ {[%emt 0:01:46]} 1-0

[Event "Niedersachsen-ch B 2024"]
[Site "Verden Aller"]
[Date "2024.01.05"]
[Round "4.20"]
[White "Frese, Immo"]
[Black "Berkenkamp, Matthis"]
[Result "0-1"]
[ECO "A85"]
[WhiteElo "1642"]
[BlackElo "1425"]
[Annotator "NA"]
[PlyCount "130"]
[EventDate "2024.01.01"]
[EventType "swiss"]
[EventCountry "GER"]
[SourceTitle "playchess.com"]
[Source "ChessBase"]
[SourceQuality "1"]
[TimeControl "40/5400+30:1800+30"]

1. d4 {[%emt 0:00:03]} d5 {[%emt 0:00:20]} 2. c4 {[%emt 0:00:11]} e6 {[%emt 0:00:07]} 3. Nc3 {[%emt 0:00:21]} c6 {[%emt 0:00:17]} 4. e3 {[%emt 0:00:30]} f5 {[%emt 0:00:05]} 5. Nf3 {[%emt 0:00:24]} Nf6 {[%emt 0:00:07]} 6. Bd3 {[%emt 0:00:29]} Bd6 {[%emt 0:00:30]} 7. O-O {[%emt 0:01:09]} Nbd7 {[%emt 0:00:21]} 8. b3 {[%emt 0:00:59]} O-O {[%emt 0:00:24]} 9. Bb2 {[%emt 0:01:20]} Ne4 {[%emt 0:01:52]} 10. Ne2 {[%emt 0:03:35]} g5 {[%emt 0:02:07]} 11. Rc1 {[%emt 0:07:58]} Qf6 {[%emt 0:02:28]} 12. Re1 {[%emt 0:03:50]} g4 {[%emt 0:00:57]} 13. Nd2 {[%emt 0:01:19]} Bxh2+ {[%emt 0:01:28]} 14. Kf1 {[%emt 0:19:54]} Qh4 {[%emt 0:01:09]} 15. Bxe4 {[%emt 0:10:23]} fxe4 {[%emt 0:00:39]} 16. Nf4 {[%emt 0:03:50]} Bxf4 {[%emt 0:00:39]} 17. exf4 {[%emt 0:01:21]} Rxf4 {[%emt 0:00:22]} 18. f3 {[%emt 0:03:06]} Qh1+ {[%emt 0:00:22]} 19. Kf2 {[%emt 0:01:49]} g3+ {[%emt 0:02:12]} 20. Ke3 {[%emt 0:01:00]} Qh6 {[%emt 0:00:53]} 21. Ke2 {[%emt 0:00:36]} Nf6 {[%emt 0:06:44]} 22. Rh1 {[%emt 0:03:05]} exf3+ {[%emt 0:00:30]} 23. Nxf3 {[%emt 0:01:25]} Re4+ {[%emt 0:01:05]} 24. Kd3 {[%emt 0:00:42]} Qe3+ {[%emt 0:00:23]} 25. Kc2 {[%emt 0:00:27]} Qe2+ {[%emt 0:03:45]} 26. Kb1 {[%emt 0:01:15]} Qxd1 {[%emt 0:00:35]} 27. Rcxd1 {[%emt 0:00:35]} Re2 {[%emt 0:00:36]} 28. Rd2 {[%emt 0:00:47]} Rxd2 {[%emt 0:01:22]} 29. Nxd2 {[%emt 0:01:13]} Kh8 {[%emt 0:02:39]} 30. Rh3 {[%emt 0:05:19]} e5 {[%emt 0:00:38]} 31. Rxg3 {[%emt 0:00:36]} e4 {[%emt 0:00:11]} 32. Nf1 {[%emt 0:01:25]} Be6 {[%emt 0:01:01]} 33. Bc1 {[%emt 0:03:25]} Rg8 {[%emt 0:00:28]} 34. Rxg8+ {[%emt 0:23:09]} Kxg8 {[%emt 0:00:12]} 35. Bf4 {[%emt 0:00:00]} Kf7 {[%emt 0:03:47]} 36. cxd5 {[%emt 0:00:00]} Nxd5 {[%emt 0:01:26]} 37. Bd2 {[%emt 0:00:00]} Kg6 {[%emt 0:00:51]} 38. g3 {[%emt 0:00:00]} Bh3 {[%emt 0:01:50]} 39. Ne3 {[%emt 0:00:00]} Nxe3 {[%emt 0:00:08]} 40. Bxe3 {[%emt 0:00:00]} Kf5 {[%emt 0:00:51]} 41. Kc2 {[%emt 0:24:18]} Kg4 {[%emt 0:31:31]} 42. Bf4 {[%emt 0:02:17]} Kf3 {[%emt 0:00:26]} 43. Kd2 {[%emt 0:01:23]} h5 {[%emt 0:00:22]} 44. Bd6 {[%emt 0:05:37]} Kf2 {[%emt 0:00:30]} 45. Bf4 {[%emt 0:00:54]} Bg4 {[%emt 0:00:33]} 46. a4 {[%emt 0:00:00]} Be6 {[%emt 0:00:00]} 47. b4 {[%emt 0:00:00]} Bb3 {[%emt 0:00:00]} 48. a5 {[%emt 0:00:00]} a6 {[%emt 0:00:00]} 49. Be3+ {[%emt 0:00:00]} Kxg3 {[%emt 0:00:00]} 50. Ke1 {[%emt 0:00:00]} Bc4 {[%emt 0:00:00]} 51. Bf2+ {[%emt 0:00:00]} Kf3 {[%emt 0:00:00]} 52. Bh4 {[%emt 0:00:00]} Ke3 {[%emt 0:00:00]} 53. Bg5+ {[%emt 0:00:00]} Kxd4 {[%emt 0:00:00]} 54. Kf2 {[%emt 0:00:00]} Kc3 {[%emt 0:00:00]} 55. Be7 {[%emt 0:00:00]} Bd3 {[%emt 0:00:00]} 56. Ke3 {[%emt 0:00:00]} Kc4 {[%emt 0:00:00]} 57. Bc5 {[%emt 0:00:00]} h4 {[%emt 0:00:00]} 58. Kf2 {[%emt 0:00:00]} h3 {[%emt 0:00:00]} 59. Kg3 {[%emt 0:00:00]} Bf1 {[%emt 0:00:00]} 60. Bd6 {[%emt 0:00:00]} e3 {[%emt 0:00:00]} 61. Kf3 {[%emt 0:00:00]} e2 {[%emt 0:00:00]} 62. Kf2 {[%emt 0:00:00]} Kb5 {[%emt 0:00:00]} 63. Ke1 {[%emt 0:00:00]} h2 {[%emt 0:00:00]} 64. Bxh2 {[%emt 0:00:00]} Kxb4 {[%emt 0:00:00]} 65. Bc7 {[%emt 0:00:00]} c5 {[%emt 0:00:00]} 0-1

[Event "Niedersachsen-ch B 2024"]
[Site "Verden Aller"]
[Date "2024.01.05"]
[Round "4.23"]
[White "Schoenfelder, Dennis Yoel"]
[Black "Direk, Oguzhan"]
[Result "0-1"]
[ECO "B22"]
[WhiteElo "1370"]
[BlackElo "1657"]
[Annotator "NA"]
[PlyCount "120"]
[EventDate "2024.01.01"]
[EventType "swiss"]
[EventCountry "GER"]
[SourceTitle "playchess.com"]
[Source "ChessBase"]
[SourceQuality "1"]
[TimeControl "40/5400+30:1800+30"]

1. e4 {[%emt 0:00:02]} c5 {[%emt 0:02:45]} 2. c3 {[%emt 0:00:01]} d5 {[%emt 0:00:09]} 3. exd5 {[%emt 0:00:01]} Qxd5 {[%emt 0:00:08]} 4. d4 {[%emt 0:00:08]} e6 {[%emt 0:00:09]} 5. Nf3 {[%emt 0:00:12]} Nf6 {[%emt 0:00:08]} 6. Be2 {[%emt 0:01:06]} Be7 {[%emt 0:00:06]} 7. O-O {[%emt 0:00:04]} O-O {[%emt 0:00:04]} 8. Be3 {[%emt 0:01:54]} Nc6 {[%emt 0:02:34]} 9. h3 {[%emt 0:02:40]} Rd8 {[%emt 0:02:59]} 10. Nbd2 {[%emt 0:02:31]} cxd4 {[%emt 0:01:46]} 11. cxd4 {[%emt 0:02:12]} b6 {[%emt 0:18:09]} 12. Nb3 {[%emt 0:04:32]} Bb7 {[%emt 0:03:07]} 13. Rc1 {[%emt 0:04:59]} Rac8 {[%emt 0:02:53]} 14. Bc4 {[%emt 0:02:33]} Qd7 {[%emt 0:01:44]} 15. Qe2 {[%emt 0:05:40]} Nd5 {[%emt 0:05:42]} 16. a3 {[%emt 0:05:39]} Bf6 {[%emt 0:02:53]} 17. Rfd1 {[%emt 0:03:50]} a5 {[%emt 0:05:27]} 18. Nbd2 {[%emt 0:07:10]} Na7 {[%emt 0:04:19]} 19. Ne4 {[%emt 0:04:31]} Be7 {[%emt 0:00:57]} 20. Ne5 {[%emt 0:02:32]} Qe8 {[%emt 0:00:16]} 21. Ng3 {[%emt 0:01:12]} b5 {[%emt 0:01:37]} 22. Bd3 {[%emt 0:01:36]} Nxe3 {[%emt 0:01:35]} 23. fxe3 {[%emt 0:00:48]} Bd6 {[%emt 0:00:19]} 24. Qh5 {[%emt 0:04:21]} f5 {[%emt 0:01:28]} 25. Qe2 {[%emt 0:04:31]} Bxe5 {[%emt 0:01:52]} 26. dxe5 {[%emt 0:00:03]} b4 {[%emt 0:02:05]} 27. e4 {[%emt 0:02:49]} f4 {[%emt 0:00:50]} 28. Nh5 {[%emt 0:00:28]} Rxc1 {[%emt 0:01:27]} 29. Rxc1 {[%emt 0:00:18]} Qd7 {[%emt 0:01:10]} 30. Nxf4 {[%emt 0:02:48]} Qd4+ {[%emt 0:00:34]} 31. Kh1 {[%emt 0:02:26]} Qxe5 {[%emt 0:00:14]} 32. Qe3 {[%emt 0:00:54]} Qxb2 {[%emt 0:02:50]} 33. axb4 {[%emt 0:00:42]} e5 {[%emt 0:03:15]} 34. Bc4+ {[%emt 0:04:41]} Kh8 {[%emt 0:00:01]} 35. Ng6+ {[%emt 0:04:03]} hxg6 {[%emt 0:00:43]} 36. Qg5 {[%emt 0:00:01]} Qf2 {[%emt 0:02:26]} 37. Qxd8+ {[%emt 0:00:53]} Kh7 {[%emt 0:00:01]} 38. Qg8+ {[%emt 0:02:36]} Kh6 {[%emt 0:00:07]} 39. Qh8+ {[%emt 0:00:15]} Kg5 {[%emt 0:00:03]} 40. Qxg7 {[%emt 0:00:26]} Bxe4 {[%emt 0:00:34]} 41. Qxe5+ {[%emt 0:30:11]} Bf5 {[%emt 0:30:01]} 42. Qe7+ {[%emt 0:02:30]} Kh6 {[%emt 0:00:14]} 43. Qf8+ {[%emt 0:02:54]} Kg5 {[%emt 0:00:08]} 44. Qd8+ {[%emt 0:00:31]} Kh6 {[%emt 0:00:07]} 45. Qh8+ {[%emt 0:01:56]} Kg5 {[%emt 0:00:04]} 46. Qe5 {[%emt 0:00:18]} axb4 {[%emt 0:00:04]} 47. Qe7+ {[%emt 0:01:15]} Kh6 {[%emt 0:00:15]} 48. Qxb4 {[%emt 0:00:09]} Bxh3 {[%emt 0:01:06]} 49. Bf1 {[%emt 0:01:13]} Bf5 {[%emt 0:00:46]} 50. Qc4 {[%emt 0:02:23]} Nc8 {[%emt 0:00:09]} 51. Rd1 {[%emt 0:00:55]} Nb6 {[%emt 0:00:28]} 52. Qb5 {[%emt 0:00:15]} Nd7 {[%emt 0:00:56]} 53. Rd4 {[%emt 0:02:27]} Qxd4 {[%emt 0:00:06]} 54. Qc6 {[%emt 0:00:29]} Ne5 {[%emt 0:01:06]} 55. Qf6 {[%emt 0:00:38]} Qf4 {[%emt 0:01:56]} 56. Qh8+ {[%emt 0:12:18]} Kg5 {[%emt 0:00:03]} 57. Qd8+ {[%emt 0:00:00]} Kg4 {[%emt 0:00:25]} 58. Be2+ {[%emt 0:00:00]} Kg3 {[%emt 0:00:13]} 59. Qd1 {[%emt 0:00:00]} Qh4+ {[%emt 0:00:16]} 60. Kg1 {[%emt 0:00:00]} Qh2+ {[%emt 0:32:41]} 0-1

[Event "Niedersachsen-ch B 2024"]
[Site "Verden Aller"]
[Date "2024.01.05"]
[Round "4.24"]
[White "Juergenpott, Maximilian"]
[Black "Rose, Simeon"]
[Result "1-0"]
[ECO "E61"]
[WhiteElo "1660"]
[BlackElo "1368"]
[Annotator "NA RC"]
[PlyCount "61"]
[EventDate "2024.01.01"]
[EventType "swiss"]
[EventCountry "GER"]
[SourceTitle "playchess.com"]
[Source "ChessBase"]
[SourceQuality "1"]
[TimeControl "40/5400+30:1800+30"]

1. Nf3 {[%emt 0:00:03]} g6 {[%emt 0:01:10]} 2. e3 {[%emt 0:00:44]} Bg7 {[%emt 0:00:27]} 3. c4 {[%emt 0:00:08]} c5 {[%emt 0:00:21]} 4. Nc3 {[%emt 0:00:08]} Nc6 {[%emt 0:00:16]} 5. Be2 {[%emt 0:02:31]} Nf6 {[%emt 0:00:54]} 6. O-O {[%emt 0:00:14]} O-O {[%emt 0:00:06]} 7. d4 {[%emt 0:00:14]} d6 {[%emt 0:02:17]} 8. d5 {[%emt 0:06:40]} Na5 {[%emt 0:01:44]} 9. e4 {[%emt 0:00:44]} Ng4 {[%emt 0:12:25]} 10. h3 {[%emt 0:03:42]} Ne5 {[%emt 0:01:48]} 11. Nxe5 {[%emt 0:00:19]} Bxe5 {[%emt 0:00:16]} 12. f4 {[%emt 0:01:36]} Bd4+ {[%emt 0:01:07]} 13. Kh1 {[%emt 0:00:37]} f5 {[%emt 0:00:14]} 14. e5 {[%emt 0:12:37]} dxe5 {[%emt 0:06:14]} 15. Nb5 {[%emt 0:00:07]} e6 {[%emt 0:02:57]} 16. Nxd4 {[%emt 0:00:51]} exd4 {[%emt 0:00:10]} 17. b4 {[%emt 0:00:15]} cxb4 {[%emt 0:03:13]} 18. Qxd4 {[%emt 0:00:17]} Qf6 {[%emt 0:00:35]} 19. Qxf6 {[%emt 0:00:41]} Rxf6 {[%emt 0:00:09]} 20. Bb2 {[%emt 0:01:27]} Rf7 {[%emt 0:03:54]} 21. Bd4 {[%emt 0:04:13]} exd5 {[%emt 0:08:18]} 22. cxd5 {[%emt 0:04:09]} Rd7 {[%emt 0:00:34]} 23. Bf3 {[%emt 0:02:48]} Nc4 {[%emt 0:03:22]} 24. Rfd1 {[%emt 0:00:27]} b6 {[%emt 0:02:47]} 25. Rac1 {[%emt 0:15:24]} b5 {[%emt 0:03:07]} 26. Bc5 {[%emt 0:00:44]} a5 {[%emt 0:01:29]} 27. d6 {[%emt 0:00:41]} Ra6 {[%emt 0:44:06]} 28. Bd5+ {[%emt 0:42:09]} Kg7 {[%emt 0:00:00]} 29. Be6 {[%emt 0:00:00]} Rd8 {[%emt 0:00:00]} 30. Bxc8 {[%emt 0:00:00]} Rxc8 {[%emt 0:00:00]} 31. d7 {[%emt 0:00:00]} 1-0

[Event "Niedersachsen-ch B 2024"]
[Site "Verden Aller"]
[Date "2024.01.05"]
[Round "4.25"]
[White "Nechitaylo, Lev"]
[Black "Weist, Hartmut"]
[Result "0-1"]
[ECO "B22"]
[WhiteElo "1456"]
[BlackElo "1581"]
[Annotator "NA RC"]
[PlyCount "96"]
[EventDate "2024.01.01"]
[EventType "swiss"]
[EventCountry "GER"]
[SourceTitle "playchess.com"]
[Source "ChessBase"]
[SourceQuality "1"]
[TimeControl "40/5400+30:1800+30"]

1. e4 {[%emt 0:00:01]} c5 {[%emt 0:00:13]} 2. c3 {[%emt 0:00:06]} d5 {[%emt 0:00:12]} 3. exd5 {[%emt 0:00:04]} Qxd5 {[%emt 0:00:09]} 4. Nf3 {[%emt 0:00:10]} Bg4 {[%emt 0:01:19]} 5. Qa4+ {[%emt 0:00:19]} Bd7 {[%emt 0:02:25]} 6. Qf4 {[%emt 0:01:38]} Nf6 {[%emt 0:05:02]} 7. Bc4 {[%emt 0:00:21]} Qe4+ {[%emt 0:01:22]} 8. Qxe4 {[%emt 0:00:41]} Nxe4 {[%emt 0:00:11]} 9. d3 {[%emt 0:00:39]} Nd6 {[%emt 0:01:13]} 10. Na3 {[%emt 0:01:21]} b5 {[%emt 0:03:03]} 11. Bd5 {[%emt 0:01:45]} Bc6 {[%emt 0:01:37]} 12. Bxc6+ {[%emt 0:02:52]} Nxc6 {[%emt 0:00:02]} 13. c4 {[%emt 0:01:12]} b4 {[%emt 0:03:07]} 14. Nc2 {[%emt 0:00:09]} g6 {[%emt 0:03:45]} 15. Be3 {[%emt 0:01:15]} Nb7 {[%emt 0:02:50]} 16. b3 {[%emt 0:01:47]} Bg7 {[%emt 0:00:50]} 17. Rd1 {[%emt 0:00:11]} O-O {[%emt 0:02:06]} 18. O-O {[%emt 0:00:25]} e5 {[%emt 0:03:28]} 19. Ng5 {[%emt 0:01:27]} Rfd8 {[%emt 0:07:03]} 20. f4 {[%emt 0:01:32]} h6 {[%emt 0:07:11]} 21. Nf3 {[%emt 0:00:22]} Nd4 {[%emt 0:03:01]} 22. Ncxd4 {[%emt 0:02:53]} exd4 {[%emt 0:00:51]} 23. Bf2 {[%emt 0:03:10]} Re8 {[%emt 0:03:17]} 24. Rfe1 {[%emt 0:00:18]} Nd6 {[%emt 0:01:21]} 25. Kf1 {[%emt 0:03:45]} Nf5 {[%emt 0:03:45]} 26. g4 {[%emt 0:02:08]} Ne3+ {[%emt 0:04:15]} 27. Bxe3 {[%emt 0:00:33]} Rxe3 {[%emt 0:03:37]} 28. Rxe3 {[%emt 0:00:15]} dxe3 {[%emt 0:00:11]} 29. Ke2 {[%emt 0:01:21]} Re8 {[%emt 0:03:42]} 30. h4 {[%emt 0:01:39]} Kf8 {[%emt 0:06:45]} 31. Ne1 {[%emt 0:04:57]} Bd4 {[%emt 0:03:49]} 32. Nc2 {[%emt 0:01:07]} Re6 {[%emt 0:04:08]} 33. Nxd4 {[%emt 0:00:18]} cxd4 {[%emt 0:00:17]} 34. Rc1 {[%emt 0:00:54]} Ke7 {[%emt 0:02:19]} 35. c5 {[%emt 0:00:09]} Ra6 {[%emt 0:01:49]} 36. Rc2 {[%emt 0:01:01]} Kd7 {[%emt 0:01:26]} 37. Kf3 {[%emt 0:02:01]} Re6 {[%emt 0:01:19]} 38. Ke2 {[%emt 0:01:19]} Ra6 {[%emt 0:01:24]} 39. f5 {[%emt 0:01:39]} gxf5 {[%emt 0:01:21]} 40. gxf5 {[%emt 0:00:07]} Kc6 {[%emt 0:03:36]} 41. Kf3 {[%emt 0:35:56]} Kd5 {[%emt 0:34:04]} 42. Ke2 {[%emt 0:01:01]} Rc6 {[%emt 0:01:08]} 43. Rc4 {[%emt 0:00:28]} a5 {[%emt 0:01:09]} 44. Rc1 {[%emt 0:05:53]} Rxc5 {[%emt 0:00:32]} 45. Rg1 {[%emt 0:00:31]} Rc2+ {[%emt 0:04:14]} 46. Kd1 {[%emt 0:00:21]} Rf2 {[%emt 0:00:24]} 47. Rg7 {[%emt 0:01:15]} Rxf5 {[%emt 0:00:28]} 48. Rh7 {[%emt 0:00:20]} Rf6 {[%emt 0:03:10]} 0-1

[Event "Niedersachsen-ch B 2024"]
[Site "Verden Aller"]
[Date "2024.01.05"]
[Round "4.26"]
[White "Buergener, Richard"]
[Black "Knorr, Frank"]
[Result "0-1"]
[ECO "B07"]
[WhiteElo "1569"]
[BlackElo "1411"]
[Annotator "NA RC"]
[PlyCount "48"]
[EventDate "2024.01.01"]
[EventType "swiss"]
[EventCountry "GER"]
[SourceTitle "playchess.com"]
[Source "ChessBase"]
[SourceQuality "1"]
[TimeControl "40/5400+30:1800+30"]

1. e4 {[%emt 0:00:02]} d6 {[%emt 0:00:07]} 2. d4 {[%emt 0:00:15]} Nf6 {[%emt 0:00:07]} 3. Bd3 {[%emt 0:00:37]} Nbd7 {[%emt 0:00:08]} 4. Nf3 {[%emt 0:00:34]} e5 {[%emt 0:00:11]} 5. c3 {[%emt 0:01:55]} Be7 {[%emt 0:00:11]} 6. O-O {[%emt 0:01:31]} h6 {[%emt 0:02:45]} 7. Re1 {[%emt 0:05:52]} c6 {[%emt 0:00:06]} 8. Nbd2 {[%emt 0:01:19]} Qc7 {[%emt 0:00:19]} 9. Nf1 {[%emt 0:01:25]} Nf8 {[%emt 0:05:44]} 10. Ng3 {[%emt 0:07:21]} Bg4 {[%emt 0:00:20]} 11. h3 {[%emt 0:00:35]} Bd7 {[%emt 0:00:28]} 12. Qc2 {[%emt 0:06:30]} g5 {[%emt 0:01:04]} 13. Nf5 {[%emt 0:10:46]} Ng6 {[%emt 0:00:29]} 14. Nxe7 {[%emt 0:01:07]} Nxe7 {[%emt 0:00:16]} 15. dxe5 {[%emt 0:03:48]} dxe5 {[%emt 0:02:25]} 16. Be3 {[%emt 0:04:13]} Ng6 {[%emt 0:00:29]} 17. Bc4 {[%emt 0:01:37]} Rh7 {[%emt 0:03:22]} 18. Red1 {[%emt 0:01:52]} O-O-O {[%emt 0:01:29]} 19. Bc5 {[%emt 0:03:14]} g4 {[%emt 0:01:23]} 20. hxg4 {[%emt 0:01:10]} Bxg4 {[%emt 0:00:18]} 21. Rxd8+ {[%emt 0:02:22]} Qxd8 {[%emt 0:00:33]} 22. Rd1 {[%emt 0:00:11]} Qg8 {[%emt 0:01:45]} 23. Qd3 {[%emt 0:06:12]} Nf4 {[%emt 0:03:13]} 24. Qe3 {[%emt 0:03:35]} Nxg2 {[%emt 0:03:43]} 0-1

[Event "Niedersachsen-ch B 2024"]
[Site "Verden Aller"]
[Date "2024.01.05"]
[Round "4.27"]
[White "Schiel, Lucas"]
[Black "Wilmink, Luca"]
[Result "0-1"]
[ECO "A57"]
[WhiteElo "1312"]
[BlackElo "1539"]
[Annotator "NA RC"]
[PlyCount "58"]
[EventDate "2024.01.01"]
[EventType "swiss"]
[EventCountry "GER"]
[SourceTitle "playchess.com"]
[Source "ChessBase"]
[SourceQuality "1"]
[TimeControl "40/5400+30:1800+30"]

1. d4 {[%emt 0:00:02]} Nf6 {[%emt 0:00:13]} 2. c4 {[%emt 0:00:05]} c5 {[%emt 0:00:13]} 3. d5 {[%emt 0:00:06]} b5 {[%emt 0:00:28]} 4. Bf4 {[%emt 0:05:24]} bxc4 {[%emt 0:01:26]} 5. Nc3 {[%emt 0:00:19]} d6 {[%emt 0:00:37]} 6. e4 {[%emt 0:03:06]} g6 {[%emt 0:04:21]} 7. Bxc4 {[%emt 0:03:05]} Bg7 {[%emt 0:02:39]} 8. Qd2 {[%emt 0:03:03]} O-O {[%emt 0:02:16]} 9. Nge2 {[%emt 0:09:56]} Nbd7 {[%emt 0:02:27]} 10. Ng3 {[%emt 0:13:21]} Nb6 {[%emt 0:03:45]} 11. Be2 {[%emt 0:00:16]} Nfd7 {[%emt 0:01:05]} 12. Nd1 {[%emt 0:13:43]} Ne5 {[%emt 0:02:49]} 13. Ne3 {[%emt 0:01:05]} Rb8 {[%emt 0:01:09]} 14. Rb1 {[%emt 0:01:04]} Bd7 {[%emt 0:02:45]} 15. h4 {[%emt 0:01:30]} Na4 {[%emt 0:02:09]} 16. Nd1 {[%emt 0:13:47]} Qc7 {[%emt 0:07:26]} 17. Bh6 {[%emt 0:02:16]} c4 {[%emt 0:03:08]} 18. Bxg7 {[%emt 0:27:22]} Kxg7 {[%emt 1:00:34]} 19. h5 {[%emt 0:00:00]} c3 {[%emt 0:00:00]} 20. Nxc3 {[%emt 0:00:00]} Nxc3 {[%emt 0:00:00]} 21. Rc1 {[%emt 0:00:00]} Nxe4 {[%emt 0:00:00]} 22. Nxe4 {[%emt 0:00:00]} Qb6 {[%emt 0:00:00]} 23. hxg6 {[%emt 0:00:00]} fxg6 {[%emt 0:00:00]} 24. Qh6+ {[%emt 0:00:00]} Kf7 {[%emt 0:00:00]} 25. f4 {[%emt 0:01:49]} Nd3+ {[%emt 0:00:00]} 26. Bxd3 {[%emt 0:01:08]} Qe3+ {[%emt 0:00:00]} 27. Be2 {[%emt 0:00:07]} Rxb2 {[%emt 0:00:00]} 28. Qxh7+ {[%emt 0:00:14]} Ke8 {[%emt 0:00:00]} 29. Qxg6+ {[%emt 0:00:02]} Kd8 {[%emt 0:00:00]} 0-1

[Event "Niedersachsen-ch B 2024"]
[Site "Verden Aller"]
[Date "2024.01.05"]
[Round "4.29"]
[White "Bartel, Reinhard"]
[Black "Fize, Aleksandrs"]
[Result "1/2-1/2"]
[ECO "A84"]
[WhiteElo "1525"]
[BlackElo "1307"]
[Annotator "NA RC"]
[PlyCount "86"]
[EventDate "2024.01.01"]
[EventType "swiss"]
[EventCountry "GER"]
[SourceTitle "playchess.com"]
[Source "ChessBase"]
[SourceQuality "1"]
[TimeControl "40/5400+30:1800+30"]

1. d4 {[%emt 0:00:04]} d5 {[%emt 0:00:04]} 2. c4 {[%emt 0:00:09]} e6 {[%emt 0:00:06]} 3. Nf3 {[%emt 0:00:13]} c6 {[%emt 0:00:08]} 4. e3 {[%emt 0:00:17]} f5 {[%emt 0:00:11]} 5. Ne5 {[%emt 0:00:48]} Nd7 {[%emt 0:00:17]} 6. Qh5+ {[%emt 0:00:50]} Ke7 {[%emt 0:03:17]} 7. Qf7+ {[%emt 0:11:58]} Kd6 {[%emt 0:00:58]} 8. c5+ {[%emt 0:03:54]} Kc7 {[%emt 0:00:40]} 9. Nxd7 {[%emt 1:16:47]} Bxd7 {[%emt 0:00:17]} 10. Qh5 {[%emt 0:00:00]} Nf6 {[%emt 0:00:17]} 11. Qf3 {[%emt 0:00:00]} Be7 {[%emt 0:01:24]} 12. Nc3 {[%emt 0:00:00]} Ne4 {[%emt 0:01:42]} 13. Bd3 {[%emt 0:00:00]} Rf8 {[%emt 0:01:53]} 14. Bd2 {[%emt 0:00:00]} Kc8 {[%emt 0:03:32]} 15. Qe2 {[%emt 0:00:00]} Qe8 {[%emt 0:02:43]} 16. b4 {[%emt 0:00:00]} g5 {[%emt 0:01:05]} 17. f3 {[%emt 0:00:00]} Nxd2 {[%emt 0:00:23]} 18. Kxd2 {[%emt 0:00:00]} h5 {[%emt 0:00:08]} 19. b5 {[%emt 0:00:00]} f4 {[%emt 0:02:29]} 20. bxc6 {[%emt 0:00:00]} Bxc6 {[%emt 0:00:09]} 21. e4 {[%emt 0:00:00]} Qd7 {[%emt 0:00:54]} 22. Rhe1 {[%emt 0:00:00]} Bd8 {[%emt 0:01:10]} 23. exd5 {[%emt 0:00:00]} exd5 {[%emt 0:00:11]} 24. Qe6 {[%emt 0:00:00]} Qxe6 {[%emt 0:00:40]} 25. Rxe6 {[%emt 0:00:00]} Bf6 {[%emt 0:00:52]} 26. Ne2 {[%emt 0:00:00]} Kc7 {[%emt 0:00:35]} 27. Kc3 {[%emt 0:00:00]} Rae8 {[%emt 0:00:12]} 28. Rxe8 {[%emt 0:00:00]} Rxe8 {[%emt 0:00:06]} 29. Kd2 {[%emt 0:00:00]} Re3 {[%emt 0:00:40]} 30. h3 {[%emt 0:00:00]} h4 {[%emt 0:00:10]} 31. Rc1 {[%emt 0:02:21]} Kd7 {[%emt 0:00:14]} 32. Bf5+ {[%emt 0:01:08]} Ke8 {[%emt 0:00:34]} 33. Rc3 {[%emt 0:00:36]} Rxc3 {[%emt 0:01:41]} 34. Kxc3 {[%emt 0:00:15]} Ke7 {[%emt 0:00:39]} 35. Nc1 {[%emt 0:01:29]} Bb5 {[%emt 0:01:41]} 36. Bd3 {[%emt 0:01:18]} Bc6 {[%emt 0:01:01]} 37. Ne2 {[%emt 0:01:44]} b6 {[%emt 0:01:00]} 38. cxb6 {[%emt 0:01:11]} axb6 {[%emt 0:00:10]} 39. Kb4 {[%emt 0:00:38]} Kd6 {[%emt 0:00:32]} 40. a4 {[%emt 0:03:34]} Bg7 {[%emt 0:00:13]} 41. a5 {[%emt 0:02:01]} bxa5+ {[%emt 0:00:08]} 42. Kxa5 {[%emt 0:00:07]} Bf6 {[%emt 0:00:12]} 43. Kb4 {[%emt 0:02:52]} Bg7 {[%emt 0:00:08]} 1/2-1/2